{"text_format":"1","workbook":"xlsx","n_sheets":12,"sheets":["1. Forside","2. Samlet prisloft","3. Driftsomkostninger","4. Historiske investeringer","5. Gennemførte investeringer","6. Korrektion investeringer","7. Planlagte investeringer","8. 1-1 omkostninger","9. Miljø- og servicemål","10. Nettofinansielle poster","11. Over- eller underdækning","12. Kontrol med indtægtsrammen"],"not_rendered":{"charts":0,"images":0,"macros":1,"external_links":0,"defined_names":0,"comments":0,"pivot_tables":0},"unopened":[],"bounds":{"document_bytes":16777216,"sheet_cells":100000,"rows_first":2000,"rows_last":500,"rows_between":2000,"halvings":0,"cell_chars":16384,"cell_head_chars":4096},"cells_cut":0,"cells_raw":0,"read":"whole","date_system":"1900"}

{"sheet":"1. Forside","index":0,"n_rows":26,"n_cols":4,"rows_kept":26,"cut":false,"hidden":false,"merged":[[20,3,20,5],[19,3,19,5],[18,3,18,5],[7,3,7,5],[12,3,12,5],[15,3,15,5],[16,3,16,5],[17,3,17,5],[25,3,25,5],[24,3,24,5],[23,3,23,5],[22,3,22,5],[21,3,21,5]]}
["Hørsholm Vand ApS (Vand)"]
[]
[]
[]
[]
[]
[]
[null,null,null,"Bilag A"]
[]
[]
[]
[]
[null,null,null,"Indholdsfortegnelse"]
[]
[]
[null,null,"Fane nr. 2","Samlet prisloft "]
[null,null,"Fane nr. 3","Driftsomkostninger"]
[null,null,"Fane nr. 4","Historiske investeringer "]
[null,null,"Fane nr. 5","Gennemførte investeringer"]
[null,null,"Fane nr. 6","Korrektion investeringer"]
[null,null,"Fane nr. 7","Planlagte investeringer"]
[null,null,"Fane nr. 8","1:1 omkostninger"]
[null,null,"Fane nr. 9","Miljø- og servicemål"]
[null,null,"Fane nr. 10","Nettofinansielle poster"]
[null,null,"Fane nr. 11","Over- eller underdækning"]
[null,null,"Fane nr. 12","Kontrol med indtægtsrammen og oversigt over ekstraordinære effektiviseringsgevinster"]

{"sheet":"2. Samlet prisloft","index":1,"n_rows":38,"n_cols":6,"rows_kept":38,"cut":false,"hidden":false,"merged":[[3,1,3,5]]}
[{"$f":"'1. Forside'!A1","v":"Hørsholm Vand ApS (Vand)"}]
[]
[]
[null,"Fane 2. Samlet prisloft for 2015"]
[]
[null,"Driftsomkostninger"]
[null,"Driftsomkostninger i prisloftet for 2014",{"$f":"'3. Driftsomkostninger'!C20","v":7739568.1699999999},"kr."]
[null,"Bortfald af væsentlige omkostninger",{"$f":"-'3. Driftsomkostninger'!C16","v":0},"kr."]
[null,"Korrektion for prisudviklingen 2014-2015",{"$f":"'3. Driftsomkostninger'!C22","v":6191.654536},"kr."]
[null,"Forhøjelse til effektivt niveau iht. benchmarkingen",{"$f":"'3. Driftsomkostninger'!C28","v":0},"kr."]
[null,"Korrektion for generelt effektiviseringskrav",{"$f":"-'3. Driftsomkostninger'!C34","v":-34054.099948000003},"kr."]
[null,"Korrektion for individuelt effektiviseringskrav",{"$f":"-'3. Driftsomkostninger'!C43","v":-386978.40850000002},"kr."]
[null,"Driftsomkostninger i alt",{"$f":"SUM(C7:C12)","v":7324727.3160880003},"kr.",{"$f":"C13","v":7324727.3160880003}," kr."]
[null,"Investeringer"]
[null,"Tillæg for historiske investeringer",{"$f":"'4. Historiske investeringer'!C9","v":3128979.6433906434},"kr."]
[null,"Tillæg for gennemførte investeringer i 2011-2013",{"$f":"'5. Gennemførte investeringer'!F35","v":981183.75564884278},"kr."]
[null,"Korrektion af tillæg for planlagte investeringer vedrørende 2013  ",{"$f":"'6. Korrektion investeringer'!C10","v":37930.642579736916},"kr."]
[null,"Tillæg for planlagte investeringer i 2014 og 2015",{"$f":"'7. Planlagte investeringer'!F37","v":397883.33333333331},"kr."]
[null,"Investeringstillæg i alt",{"$f":"SUM(C15:C18)","v":4545977.3749525566},"kr.",{"$f":"C19","v":4545977.3749525566}," kr."]
[null,"Øvrige omkostninger mv."]
[null,"Tillæg for 1:1 omkostninger i 2015",{"$f":"'8. 1-1 omkostninger'!C10","v":5061500},"kr."]
[null,"Tillæg for afgift for ledningsført vand i 2015",{"$f":"'8. 1-1 omkostninger'!C15","v":7870000},"kr."]
[null,"Tillæg vedr. revisorerklæringer og DANVA/FVD-kontingent",{"$f":"'8. 1-1 omkostninger'!C21","v":54000},"kr."]
[null,"Korrektion ift. faktiske 1:1 omkostninger i 2013",{"$f":"'8. 1-1 omkostninger'!C27","v":-457232},"kr."]
[null,"Tillæg for driftsomkostninger til miljø- og servicemål i 2015",{"$f":"'9. Miljø- og servicemål'!C10","v":131000},"kr."]
[null,"Korrektion ift. faktiske driftsomkostninger til miljø- og servicemål i 2013",{"$f":"'9. Miljø- og servicemål'!C17","v":-57909},"kr."]
[null,"Tillæg/fradrag for nettofinansielle poster i 2015",{"$f":"'10. Nettofinansielle poster'!C9","v":72000},"kr."]
[null,"Korrektion ift. faktiske nettofinansielle poster i 2013",{"$f":"'10. Nettofinansielle poster'!C16","v":-49259},"kr."]
[null,"Øvrige omkostninger mv. i alt",{"$f":"SUM(C21:C28)","v":12624100},"kr.",{"$f":"C29","v":12624100}," kr."]
[null,"Historisk over- eller underdækning"]
[null,"Tillæg/fradrag for over- eller underdækning til og med 2010",{"$f":"'11. Over- eller underdækning'!C11","v":173097.75132275131},"kr.",{"$f":"C31","v":173097.75132275131}," kr."]
[null,"Korrektion i forhold til tidligere indtægtsramme "]
[null,"Korrektion for overholdelse af indtægtsramme i prisloft 2013",{"$f":"'12. Kontrol med indtægtsrammen'!E27","v":1080144.5344383009},"kr.",{"$f":"C33","v":1080144.5344383009}," kr."]
[null,"Samlet prisloft"]
[null,"Indtægtsramme i 2015 ",null,null,{"$f":"SUM(E13:E33)","v":25748046.976801608}," kr."]
[null,"Debiteret vandmængde i 2013",null,null,1282827," m3"]
[null,"Prisloft 2015",null,null,{"$f":"E35/E36","v":20.071332281594952}," kr./m3"]
[null,"Prisloft 2015 ekskl. afgift for ledningsført vand ",null,null,{"$f":"(E35-C22)/E36","v":13.936444256943147}," kr./m3"]

{"sheet":"3. Driftsomkostninger","index":2,"n_rows":43,"n_cols":4,"rows_kept":43,"cut":false,"hidden":false,"merged":[[3,1,3,3]]}
[{"$f":"'1. Forside'!A1","v":"Hørsholm Vand ApS (Vand)"}]
[]
[]
[null,"Fane 3. Driftsomkostninger "]
[]
[null,"Driftsomkostningerne i prisloftet for 2014"]
[null,"Korrigerede driftsomkostninger i prisloftet for 2013 (DOiPL 2013)",8020278,"kr."]
[null,"Prisfremskrivning 1,5 pct.",{"$f":"0.015*SUM(C7:C7)","v":120304.17},"kr."]
[null,"Generelt effektiviseringskrav (0 pct.)",0,"kr."]
[null,"Individuelt effektiviseringskrav ",-401014,"kr."]
[null,"Driftsomkostningerne i prisloftet for 2014 (DOiPL 2014)",{"$f":"SUM(C7:C10)","v":7739568.1699999999},"kr."]
[]
[]
[null,"Korrektion for forventet bortfald af væsentlige omkostninger"]
[null,"Selskabets indberettede bortfald af væsentlige omkostninger inden 2015",0,"kr."]
[null,"Korrektion for forventet bortfald ",{"$f":"SUM(C15:C15)","v":0},"kr."]
[]
[]
[null,"Korrektion for prisudviklingen fra 2014-2015"]
[null,"Driftsomkostningerne i prisloftet for 2014",{"$f":"C11-C16","v":7739568.1699999999},"kr."]
[null,"Prisudvikling 2014 - 2015 ",0.08,"pct."]
[null,"Korrektion for prisudvikling",{"$f":"C20*(C21/100)","v":6191.654536},"kr."]
[]
[]
[null,"Eventuel forhøjelse til effektivt niveau iht. benchmarkingen"]
[null,"Selskabets effektive driftsomkostninger iht. benchmarkingen",3049390,"kr."]
[null,"Selskabets pristalskorrigerede driftsomkostninger i 2015-niveau",{"$f":"C20+C22","v":7745759.8245360004},"kr."]
[null,"Eventuel forhøjelse til effektivt niveau",{"$f":"IF(C27>C26,0,C26-C27)","v":0},"kr."]
[]
[]
[null,"Korrektion for generelt effektiviseringskrav"]
[null,"Driftsomkostningerne i prisloftet for 2014",{"$f":"C20","v":7739568.1699999999},"kr. "]
[null,"Generelt effektiviseringskrav ",0.44,"pct."]
[null,"Endeligt generelt effektiviseringskrav",{"$f":"C32*(C33/100)","v":34054.099948000003},"kr. "]
[]
[]
[null,"Korrektion for individuelt effektiviseringskrav"]
[null,"Rå effektiviseringspotentiale",4760608,"kr."]
[null,"Effektiviseringspotentiale efter eventuel korrektion for særlige forhold",4690178,"kr."]
[null,"Effektiviseringspotentiale efter forsigtighedshensyn",3497511,"kr."]
[null,"Effektiviseringspotentiale efter eventuel korrektion for sammensætning af signifikante costdrivere",3013423,"kr. "]
[null,"Umiddelbart effektiviseringskrav",{"$f":"C41/4","v":753355.75},"kr."]
[null,"Endeligt individuelt effektiviseringskrav",{"$f":"IF(C42>0.05*C20,0.05*C20,IF(C42<0.01*C20,0,C42))","v":386978.40850000002},"kr. "]

{"sheet":"4. Historiske investeringer","index":3,"n_rows":9,"n_cols":4,"rows_kept":9,"cut":false,"hidden":false,"merged":[[3,1,3,2]]}
[{"$f":"'3. Driftsomkostninger'!A1","v":"Hørsholm Vand ApS (Vand)"}]
[]
[]
[null,"Fane 4. Historiske investeringer "]
[]
[null,"Tillæg for historiske investeringer "]
[null,"Værdi af selskabets materielle anlægsaktiver pr. 1. januar 2010",138111815.50868887,"kr."]
[null,"Den årlige standardafskrivning på de materielle anlægsaktiver iht. POLKA",3128979.6433906434,"kr."]
[null,"Tillæg i alt i 2015",{"$f":"C8","v":3128979.6433906434},"kr."]

{"sheet":"5. Gennemførte investeringer","index":4,"n_rows":35,"n_cols":7,"rows_kept":35,"cut":false,"hidden":false,"merged":[[3,1,3,5],[6,5,6,6]]}
[{"$f":"'4. Historiske investeringer'!A1","v":"Hørsholm Vand ApS (Vand)"}]
[]
[]
[null,"Fane 5. Gennemførte investeringer i 2010 - 2013 "]
[]
[null,"Tillæg for gennemførte investeringer i 2013"]
[null," Beskrivelse af investeringen   ","Årstal ","Std. levetid (år)   "," Anskaffelses-pris (kr.)","Afskrivning "]
[null,"Arbejdsplads",2013,5,218461,{"$f":"E8/D8","v":43692.2},"kr."]
[null,"Ventiler på Ø 50mm < Ledningsnet = Ø110 mm",2013,75,9905,132.06666666666666,"kr."]
[null,"Ø 50mm < Ledningsnet = Ø110 mm",2013,75,9660,128.80000000000001,"kr."]
[null,"SRO-brønd/kvarterbrønd/sektionsbrønd, Konstruktioner",2013,38,166073,4370.3421052631575,"kr."]
[null,"Lager",2013,50,2155920,43118.400000000001,"kr."]
[null,"Ledningsnet = Ø50 mm",2013,10,178471,{"$f":"E13/D13","v":17847.099999999999},"kr."]
[null,"Ventiler på ledningsnet = Ø50 mm",2013,73,110203,1509.6301369863013,"kr."]
[null,"Ventiler på Ø 50mm < Ledningsnet = Ø110 mm",2013,75,10047,133.96,"kr."]
[null,"Ventiler på Ø 50mm < Ledningsnet = Ø110 mm",2013,75,8363,111.50666666666666,"kr."]
[null,"Ventiler på Ø110 mm < Ledningsnet = Ø 250 mm",2013,75,13181,175.74666666666667,"kr."]
[null,"Ventiler på Ø110 mm < Ledningsnet = Ø 250 mm",2013,75,71307,950.76,"kr."]
[null,"Ventiler på Ø110 mm < Ledningsnet = Ø 250 mm",2013,75,54177,722.36,"kr."]
[null,"Afregningsmålere, mekaniske",2013,12,1099455,91621.25,"kr."]
[null,"Ledningsnet = Ø50 mm",2013,75,442484,5899.7866666666669,"kr."]
[null,"Ø 50mm < Ledningsnet = Ø110 mm",2013,75,1552768,20703.573333333334,"kr."]
[null,"Ø 50mm < Ledningsnet = Ø110 mm",2013,75,194182,2589.0933333333332,"kr."]
[null,"Ø 50mm < Ledningsnet = Ø110 mm",2013,75,193978,2586.3733333333334,"kr."]
[null,"Ledningsnet = Ø50 mm",2013,75,74774,996.98666666666668,"kr."]
[null,"Ø 50mm < Ledningsnet = Ø110 mm",2013,75,261414,3485.52,"kr."]
[null,"SRO-brønd/kvarterbrønd/sektionsbrønd, SRO",2013,20,412222,20611.099999999999,"kr."]
[null,"Ventiler på ledningsnet = Ø50 mm",2013,70,36948,527.82857142857142,"kr."]
[null,"Ventiler på ledningsnet = Ø50 mm",2013,70,73497,1049.9571428571428,"kr."]
[null,"Ventiler på ledningsnet = Ø50 mm",2013,75,166209,2216.12,"kr."]
[null,"Ventiler på ledningsnet = Ø50 mm",2013,75,17176,229.01333333333332,"kr."]
[null,"Ventiler på ledningsnet = Ø50 mm",2013,75,38251,510.01333333333332,"kr."]
[null,"Tillæg for 2013 ",null,null,null,{"$f":"SUM(F8:F32)","v":265919.48795653513},"kr."]
[null,"Tillæg for 2010 - 2012",null,null,null,715264.26769230759,"kr."]
[null,"Samlet tillæg for gennemførte investeringer",null,null,null,{"$f":"F33+F34","v":981183.75564884278},"kr."]

{"sheet":"6. Korrektion investeringer","index":5,"n_rows":10,"n_cols":4,"rows_kept":10,"cut":false,"hidden":false,"merged":[[3,1,3,3]]}
[{"$f":"'5. Gennemførte investeringer'!A1","v":"Hørsholm Vand ApS (Vand)"}]
[]
[]
[null,"Fane 6. Korrektion af tillæg for planlagte investeringer"]
[]
[null,"Korrektion af tillæg for planlagte investeringer vedr. 2013"]
[null,"Tillæg for planlagte investeringer i 2013 i prisloft 2013",254975,"kr."]
[null,"Tillæg for planlagte investeringer i 2013 i prisloft 2014",238933.33333333334,"kr."]
[null,"Selskabets faktiske afskrivninger på gennemførte investeringer i 2013",{"$f":"'5. Gennemførte investeringer'!F33","v":265919.48795653513},"kr."]
[null,"Korrektion af tillæg for planlagte investeringer vedr. 2013",{"$f":"C9-C7+C9-C8","v":37930.642579736916},"kr."]

{"sheet":"7. Planlagte investeringer","index":6,"n_rows":37,"n_cols":7,"rows_kept":37,"cut":false,"hidden":false,"merged":[[6,5,6,6],[3,1,3,6]]}
[{"$f":"'6. Korrektion investeringer'!A1","v":"Hørsholm Vand ApS (Vand)"}]
[]
[]
[null,"Fane 7. Planlagte investeringer "]
[]
[null,"Tillæg for planlagte investeringer i 2014 og 2015"]
[null,"Beskrivelse af investeringen   ","Årstal ","Std. levetid (år)   ","Anskaffelses-pris (kr.)   ","Afskrivning"]
[null,"Ventiler på Ø 50mm < Ledningsnet = Ø110 mm",2014,75,197500,{"$f":"E8/D8","v":2633.3333333333335},"kr."]
[null,"Lager",2014,75,80000,{"$f":"E9/D9","v":1066.6666666666667},"kr."]
[null,"Køretøjer, små lastvogne (< 3.500 kg.)",2014,5,550000,{"$f":"E10/D10","v":110000},"kr."]
[null,"Ø 50mm < Ledningsnet = Ø110 mm",2014,75,197500,2633.3333333333335,"kr."]
[null,"Ø 50mm < Ledningsnet = Ø110 mm",2014,75,52500,700,"kr."]
[null,"Ventiler på ledningsnet = Ø50 mm",2014,75,52500,700,"kr."]
[null,"Ledningsnet = Ø50 mm",2014,75,150000,2000,"kr."]
[null,"Ø 50mm < Ledningsnet = Ø110 mm",2014,75,300000,4000,"kr."]
[null,"Ventiler på ledningsnet = Ø50 mm",2014,75,90000,1200,"kr."]
[null,"Ventiler på Ø 50mm < Ledningsnet = Ø110 mm",2014,75,60000,800,"kr."]
[null,"Afregningsmålere, mekaniske",2014,8,550000,68750,"kr."]
[null,"Ledningsnet = Ø50 mm",2014,75,112500,1500,"kr."]
[null,"Ø 50mm < Ledningsnet = Ø110 mm",2014,75,225000,3000,"kr."]
[null,"Ventiler på ledningsnet = Ø50 mm",2014,75,67500,900,"kr."]
[null,"Ventiler på Ø 50mm < Ledningsnet = Ø110 mm",2014,75,45000,600,"kr."]
[null,"Ledningsnet = Ø50 mm",2014,75,600000,8000,"kr."]
[null,"Ø 50mm < Ledningsnet = Ø110 mm",2014,75,1200000,16000,"kr."]
[null,"Ventiler på ledningsnet = Ø50 mm",2014,75,360000,4800,"kr."]
[null,"Ventiler på Ø 50mm < Ledningsnet = Ø110 mm",2014,75,240000,3200,"kr."]
[null,"SRO-brønd/kvarterbrønd/sektionsbrønd, Mek./EL",2014,20,650000,32500,"kr."]
[null,"Ledningsnet = Ø50 mm",2015,75,250000,3333.3333333333335,"kr."]
[null,"Ventiler på ledningsnet = Ø50 mm",2015,75,250000,3333.3333333333335,"kr."]
[null,"Afregningsmålere, mekaniske",2015,8,500000,62500,"kr."]
[null,"Ledningsnet = Ø50 mm",2015,75,1195000,15933.333333333334,"kr."]
[null,"Ø 50mm < Ledningsnet = Ø110 mm",2015,75,2390000,31866.666666666668,"kr."]
[null,"Ventiler på ledningsnet = Ø50 mm",2015,75,717000,9560,"kr."]
[null,"Ventiler på Ø 50mm < Ledningsnet = Ø110 mm",2015,75,478000,6373.333333333333,"kr."]
[null,"Tillæg for 2014",null,null,null,{"$f":"SUMIF(C8:C34,\"2014\",F8:F34)","v":264983.33333333331},"kr."]
[null,"Tillæg for 2015",null,null,null,{"$f":"SUMIF(C8:C34,\"2015\",F8:F34)","v":132900},"kr."]
[null,"Tillæg i alt",null,null,null,{"$f":"F35+F36","v":397883.33333333331},"kr."]

{"sheet":"8. 1-1 omkostninger","index":7,"n_rows":27,"n_cols":4,"rows_kept":27,"cut":false,"hidden":false,"merged":[[3,1,3,3],[17,1,17,3],[23,1,23,3]]}
[{"$f":"'7. Planlagte investeringer'!A1","v":"Hørsholm Vand ApS (Vand)"}]
[]
[]
[null,"Fane 8. 1:1 omkostninger"]
[]
[null,"Tillæg for budgetterede 1:1 omkostninger i 2015"]
[null,"Betaling til Forsyningssekretariatet",16500,"kr."]
[null,"Køb af varer og tjenesteydelser hos et andet prisloftreguleret vandselskab",5000000,"kr."]
[null,"Ejendomsskatter",45000,"kr."]
[null,"Tillæg i alt ",{"$f":"SUM(C7:C9)","v":5061500},"kr."]
[]
[]
[null,"Tillæg for afgift for ledningsført vand i 2015"]
[null,"Afgift for ledningsført vand (6,53 kr./m3)",7870000,"kr."]
[null,"Tillæg i alt ",{"$f":"SUM(C14:C14)","v":7870000},"kr."]
[]
[]
[null,"Tillæg for budgetterede nødvendige udgifter til revisorerklæringer samt ordinært medlemskab af DANVA og FVD i 2015"]
[null,"Betaling for ordinært medlemskab af DANVA/FVD",24000,"kr."]
[null,"Betaling for revisorerklæringer",30000,"kr."]
[null,"Tillæg i alt ",{"$f":"SUM(C19:C20)","v":54000},"kr."]
[]
[]
[null,"Korrektion af tillæg for faktiske 1:1 omkostninger (inkl. afgift for ledningsført vand, revisorerklæringer og ordinært medlemskab af DANVA/FVD) i 2013"]
[null,"Selskabets faktiske 1:1 omkostninger mv. i 2013, jf. reguleringsregnskabet",12467268,"kr."]
[null,"Tillæg for budgetterede 1:1 omkostninger mv. i prisloft 2013",12924500,"kr."]
[null,"Korrektion af tillæg for budgetterede 1:1 omkostninger mv. i 2013",{"$f":"C25-C26","v":-457232},"kr."]

{"sheet":"9. Miljø- og servicemål","index":8,"n_rows":17,"n_cols":4,"rows_kept":17,"cut":false,"hidden":false,"merged":[[3,1,3,3]]}
[{"$f":"'8. 1-1 omkostninger'!A1","v":"Hørsholm Vand ApS (Vand)"}]
[]
[]
[null,"Fane 9. Driftsomkostninger til miljø- og servicemål "]
[]
[null,"Tillæg for budgetterede driftsomkostninger til miljø- og servicemål i 2015"]
[null,"Bactiquant - ekstra analyser",26000,"kr."]
[null,"Dokumenteret Drikkevandssikkerhed (DDS)",40000,"kr."]
[null,"UMS Dynamisk Telesyntese og sms-service",65000,"kr."]
[null,"Tillæg i alt",{"$f":"SUM(C7:C9)","v":131000},"kr."]
[]
[]
[]
[null,"Korrektion af tillæg for faktiske driftsomkostninger til miljø- og servicemål i 2013"]
[null,"Selskabets faktiske driftsomkostninger til miljø- og servicemål i 2013, jf. reguleringsregnskabet",194291,"kr."]
[null,"Tillæg for budgetterede driftsomkostninger til miljø- og servicemål i prisloft 2013",252200,"kr."]
[null,"Korrektion af tillæg for budgetterede driftsomkostninger til miljø- og servicemål i 2013",{"$f":"C15-C16","v":-57909},"kr."]

{"sheet":"10. Nettofinansielle poster","index":9,"n_rows":16,"n_cols":4,"rows_kept":16,"cut":false,"hidden":false,"merged":[[3,1,3,3]]}
[{"$f":"'2. Samlet prisloft'!A1","v":"Hørsholm Vand ApS (Vand)"}]
[]
[]
[null,"Fane 10. Nettofinansielle poster"]
[]
[null,"Tillæg for budgetterede nettofinansielle poster i 2015"]
[null,"Budgetterede renteudgifter og gebyrer i 2015",74000,"kr."]
[null,"Budgetterede renteindtægter i 2015",2000,"kr."]
[null,"Tillæg/fradrag i alt",{"$f":"C7-C8","v":72000},"kr."]
[]
[]
[]
[null,"Korrektion af tillæg for faktiske nettofinansielle poster i 2013"]
[null,"Selskabets faktiske nettofinansielle poster i 2013, jf. reguleringsregnskabet",-259,"kr."]
[null,"Tillæg for budgetterede nettofinansielle poster i prisloft 2013",49000,"kr."]
[null,"Korrektion af tillæg for budgetterede nettofinansielle poster i 2013",{"$f":"C14-C15","v":-49259},"kr."]

{"sheet":"11. Over- eller underdækning","index":10,"n_rows":11,"n_cols":4,"rows_kept":11,"cut":false,"hidden":false,"merged":[[3,1,3,3]]}
[{"$f":"'1. Forside'!A1","v":"Hørsholm Vand ApS (Vand)"}]
[]
[]
[null,"Fane 11. Over- eller underdækning til og med 2010"]
[]
[null,"Tillæg/fradrag for over- eller underdækning til og med 2010"]
[null,"Opgjort over- eller underdækning per 31. december 2010",1848433,"kr."]
[null,"Heraf beløb indregnet i prislofterne for 2012 - 2014",809846.49206349207,"kr."]
[null,"Endnu ikke indregnet over- eller underdækning",{"$f":"C7-C8","v":1038586.5079365079},"kr."]
[null,"Resterende indregningsperiode (fastsat i prisloftet for 2012)",6,"år"]
[null,"Tillæg/fradrag i alt",{"$f":"IF(C7=0,0,C9/C10)","v":173097.75132275131},"kr."]

{"sheet":"12. Kontrol med indtægtsrammen","index":11,"n_rows":38,"n_cols":12,"rows_kept":38,"cut":false,"hidden":false,"merged":[[3,1,3,5],[30,1,30,4],[5,1,5,5]]}
[{"$f":"'11. Over- eller underdækning'!A1","v":"Hørsholm Vand ApS (Vand)"}]
[]
[]
[null,"Fane 12. Korrektion for overholdelse af indtægtsrammen i prisloftet for 2013"]
[]
[null,"Samlet opgørelse vedrørende overholdelse af indtægtsrammen i prisloftet for 2013"]
[null,"Indtægtsramme i prisloftet for 2013",null,null,27365152.534438301,"kr."]
[null,"Ikke anvendt likviditet vedrørende investeringer i 2013"]
[null,"Tillæg for historiske investeringer ",3421019.5110709621,"kr."]
[null,"Tillæg for gennemførte investeringer i 2011",990884,"kr."]
[null,"Korrektion af tillæg for planlagte investeringer i 2011",549207,"kr."]
[null,"Tillæg for planlagte investeringer i 2012 og 2013",377925,"kr."]
[null,"Indtægter fra tilslutningsbidrag",0,"kr."]
[null,"Indtægter fra salg af anlægsaktiver",0,"kr."]
[null,"Erstatninger vedr. anlægsaktiver mv.",0,"kr."]
[null,"Ekstraordinær effektiviseringsgevinst anvendt til investeringer",1355630,"kr."]
[null,"Udgifter til investeringer",-7258164,"kr."]
[null,"Ikke anvendt likviditet vedr. investeringer i alt",{"$f":"SUM(C9:C17)","v":-563498.48892903794},"kr.",{"$f":"IF(C18<0,0,-C18)","v":0},"kr."]
[null,"Ekstraordinære effektiviseringsgevinster anvendt til takstnedsættelse"]
[null,"Ekstraordinær effektiviseringsgevinst anvendt til takstnedsættelse",0,"kr.",{"$f":"-C20","v":0},"kr."]
[null,"Korrektion af ikke opkrævet tillæg fra 2011 i prisloft 2013"]
[null,"Korrektion af ikke opkrævet tillæg fra 2011 i prisloft 2013",0,"kr.",{"$f":"-C22","v":0},"kr."]
[null,"Indtægter fra primære aktiviteter mv."]
[null,"Indtægter fra kubikmetertakster, faste takster, særbidrag, målergebyrer samt andre takster og gebyrer",26285008,"kr."]
[null,"Andre indtægter i prisloftåret, som selskabet har opnået i forbindelse med eller som følge af selskabets primære aktiviteter",0,"kr."]
[null,"Indtægter fra primære aktiviteter mv. i alt",{"$f":"SUM(C24:C25)","v":26285008},"kr.",{"$f":"-C26","v":-26285008},"kr."]
[null,"Tillæg/fradrag i prisloftet for 2015 i alt",null,null,{"$f":"E7+E18+E20+E22+E26","v":1080144.5344383009},"kr."]
[]
[]
[]
[null,"Oversigt over ekstraordinære effektiviseringsgevinster"]
[]
[null,null,2012,null,2013,null,2014,null,2015,null,2016]
[null,"Indhentet ekstraordinær effektiviseringsgevinst",1519903,"kr.",1533020,"kr.",null,"kr.",null,"kr.",null,"kr."]
[null,"Gevinst anvendt til investeringer",1519903,"kr.",1355630,"kr.",null,"kr.",null,"kr.",null,"kr."]
[null,"Gevinst anvendt til takstnedsættelse",0,"kr.",0,"kr.",null,"kr.",null,"kr.",null,"kr."]
[null,"Korrektion for  effektiviseringsgevinst der ikke er anvendt inden 4 år",0,"kr.",0,"kr.",null,"kr.",null,"kr.",{"$f":"IF(C38>SUM(E35:I36),C38-SUM(E35:I36),0)*-1","v":0},"kr."]
[null,"Resterende gevinst",{"$f":"C34-C35-C36","v":0},"kr.",{"$f":"C38+E34-E35-E36","v":177390},"kr.",{"$f":"E38+G34-G35-G36","v":177390},"kr.",{"$f":"G38+I34-I35-I36","v":177390},"kr.",{"$f":"I38+K34-K35-K36+K37","v":177390},"kr."]